bitfinex/quotes_SOLUSD_20250915
["timestamp","ask_amount","ask_price","bid_price","bid_amount"]
[1757921881105,26.0,237.07,236.8,4.22297297]
[1757921881106,26.0,237.03,236.8,4.22297297]
[1757921881447,26.0,236.99,236.8,4.22297297]
[1757921881799,26.0,236.95,236.8,4.22297297]
[1757921882213,26.0,236.94,236.8,4.22297297]
[1757921882422,26.0,236.94,236.81,0.67]
[1757921882725,4.21976538,236.98,236.82,17.81820289]
[1757921882934,26.0,236.98,236.83,0.67]
[1757921883106,26.0,236.98,236.84,13.59559401]
[1757921883309,0.05,237.15,236.86,13.59559401]
[1757921883512,45.27,237.14,236.88,13.59559401]
[1757921883701,0.05,237.13,236.89,0.67]
[1757921883908,45.25,237.13,236.9,13.59559401]
[1757921884105,45.25,237.13,236.92,13.59559401]
[1757921884309,6.26850011,237.22,236.94,13.59559401]
[1757921884539,0.05,237.25,237.0,13.59559401]
[1757921884745,0.05,237.25,237.03,35.86043958]
[1757921884917,26.34,237.32,237.04,13.59559401]
[1757921885115,6.26850011,237.37,237.07,26.0]
[1757921885317,0.05,237.41,237.13,26.0]
[1757921885528,0.05,237.41,237.13,13.59559401]
[1757921885730,15.59,237.46,237.19,13.59559401]
[1757921886057,15.59,237.46,237.18,26.0]
[1757921886058,4.21077756,237.49,237.25,13.59559401]
[1757921886212,12.6761456,237.57,237.25,13.59559401]
[1757921886213,6.26850011,237.53,237.27,13.59559401]
[1757921886408,26.0,237.5,237.29,13.59559401]
[1757921886654,10.47849463,237.53,237.31,13.59559401]
[1757921886936,6.88094456,237.6,237.33,13.59559401]
[1757921887133,6.88094456,237.6,237.34,0.67]
[1757921887334,0.05,237.59,237.35,13.59559401]
[1757921887521,6.88094456,237.6,237.37,13.59559401]
[1757921887718,0.05,237.58,237.37,13.59559401]
[1757921887913,6.88094456,237.58,237.37,13.59559401]
[1757921888116,6.93094456,237.57,237.33,13.59559401]
[1757921888315,45.55,237.56,237.32,0.67]
[1757921888639,20.52653857,237.55,237.32,0.67]
[1757921888811,20.52653857,237.55,236.95,20.0]
[1757921888812,51.80212825,237.54,236.95,20.0]
[1757921889011,13.59559401,237.42,236.99,20.0]
[1757921889211,26.0,237.38,237.09,20.0]
[1757921889435,7.43272233,237.41,237.08,23.46]
[1757921889627,26.0,237.38,237.1,13.59559401]
[1757921890013,26.68,237.46,237.2,13.59559401]
[1757921890214,26.0,237.46,237.2,13.59559401]
[1757921890437,26.0,237.43,237.2,13.59559401]
[1757921890736,26.0,237.43,237.22,13.59559401]
[1757921890933,26.0,237.47,237.24,13.59559401]
[1757921891238,7.43272233,237.5,237.29,26.0]
[1757921891427,4.20992421,237.54,237.3,14.26559401]
[1757921891610,7.43272233,237.55,237.32,13.59559401]
[1757921891811,26.0,237.52,237.33,0.67]
[1757921892011,7.43272233,237.52,237.34,13.59559401]
[1757921892228,7.43272233,237.52,237.36,13.59559401]
[1757921892435,7.43272233,237.52,237.35,0.67]
[1757921892622,0.68,237.51,237.35,0.67]
[1757921892824,4.21034903,237.51,237.36,13.59559401]
[1757921893017,4.21034903,237.51,237.37,0.67]
[1757921893525,11.64303518,237.52,237.38,13.59559401]
[1757921893723,11.64303518,237.52,237.4,13.59559401]
[1757921893919,7.43272233,237.52,237.42,13.59559401]
[1757921894114,34.60923692,237.58,237.43,0.67]
[1757921894351,34.60923692,237.58,237.44,13.59559401]
[1757921894517,34.60923692,237.58,237.45,0.67]
[1757921894518,4.20923692,237.58,237.45,0.67]
[1757921894840,0.03,237.64,237.48,13.59559401]
[1757921895019,0.03,237.64,237.5,13.59559401]
[1757921895531,0.03,237.64,237.52,13.59559401]
[1757921895942,0.03,237.64,237.53,0.67]
[1757921896238,0.03,237.64,237.54,13.59559401]
[1757921896415,0.03,237.64,237.53,0.67]
[1757921897143,0.03,237.64,237.54,13.59559401]
[1757921897325,0.03,237.64,237.55,0.67]
[1757921897639,0.03,237.64,237.49,0.67]
[1757921897640,26.03,237.64,237.49,0.67]
[1757921897823,26.0,237.6,237.44,0.67]
[1757921898352,26.0,237.6,237.45,13.59559401]
[1757921898529,26.0,237.6,237.44,0.67]
[1757921898734,0.68,237.59,237.44,0.67]
[1757921898917,26.0,237.55,237.44,0.67]
[1757921899118,26.0,237.55,237.39,0.67]
[1757921899443,14.73187978,237.58,237.39,0.67]
[1757921900176,26.0,237.55,237.39,0.67]
[1757921900818,14.73684209,237.5,237.34,0.67]
[1757921901116,26.0,237.47,237.34,0.67]
[1757921901314,14.73684209,237.5,237.35,13.59559401]
[1757921901545,14.73684209,237.5,237.34,4.8832611]
[1757921901546,40.73684209,237.5,237.37,13.59559401]
[1757921901919,40.73684209,237.5,237.32,13.59559401]
[1757921902239,40.73684209,237.5,237.34,13.59559401]
[1757921902448,40.73684209,237.5,237.36,13.59559401]
[1757921902752,40.73684209,237.5,237.38,13.59559401]
[1757921902753,30.21052631,237.5,237.38,13.59559401]
[1757921902941,30.21052631,237.5,237.39,0.67]
[1757921903115,30.21052631,237.5,237.34,0.67]
[1757921903319,26.0,237.47,237.34,0.67]
[1757921903543,26.0,237.47,237.29,0.67]
[1757921903744,0.68,237.46,237.29,0.67]
[1757921904346,26.0,237.47,237.3,13.59559401]
[1757921904642,26.0,237.47,237.32,13.59559401]
[1757921904818,14.73684209,237.5,237.34,13.59559401]
[1757921905014,14.73684209,237.5,237.35,0.67]
[1757921905447,14.73684209,237.5,237.36,13.59559401]
[1757921906020,0.68,237.49,237.25,4.21496311]
[1757921906225,0.68,237.49,237.31,0.67]
[1757921906647,14.73684209,237.5,237.31,0.67]
[1757921906844,4.21052631,237.5,237.32,13.59559401]
[1757921907059,4.20910851,237.58,237.34,13.59559401]
[1757921907230,4.20910851,237.58,237.36,13.59559401]
[1757921907429,14.73213086,237.58,237.38,13.59559401]
[1757921907749,0.5,237.56,237.4,13.59559401]
[1757921908048,0.5,237.56,237.33,61.81510975]
[1757921908049,0.03,237.64,237.46,13.59559401]
[1757921908355,0.03,237.64,237.48,39.59559401]
[1757921908517,4.2381402,237.64,237.47,0.67]
[1757921908721,4.2381402,237.64,237.48,13.59559401]
[1757921908921,0.03,237.64,237.5,13.59559401]
[1757921909119,0.03,237.64,237.48,4.21080117]
[1757921909341,0.03,237.64,237.51,0.67]
[1757921909522,0.71,237.64,237.46,13.59559401]
[1757921909720,26.0,237.61,237.48,13.59559401]
[1757921910168,26.68,237.61,237.44,0.67]
[1757921910332,34.11272233,237.61,237.44,0.67]
[1757921910837,7.43272233,237.6,237.38,0.67]
[1757921911167,26.0,237.53,237.38,0.67]
[1757921911330,40.73312005,237.56,237.38,4.88250876]
[1757921911528,40.73312005,237.56,237.39,14.26559401]
[1757921911728,14.73312005,237.56,237.41,13.59559401]
[1757921912037,14.73312005,237.56,237.43,13.59559401]
[1757921912530,14.73312005,237.56,237.44,0.67]
[1757921912729,0.5,237.54,237.44,0.67]
[1757921912927,0.5,237.54,237.45,17.80691087]
[1757921913131,0.5,237.54,237.46,0.67]
[1757921913333,0.5,237.54,237.47,13.59559401]
[1757921913944,4.70993377,237.54,237.47,13.59559401]
[1757921914261,0.5,237.54,237.48,0.67]
[1757921914439,0.5,237.54,237.49,13.59559401]
[1757921914768,0.5,237.54,237.51,13.59559401]
[1757921914945,0.5,237.54,237.53,13.59559401]
[1757921915141,0.5,237.54,237.48,10.5268288]
[1757921915142,4.20999452,237.53,237.46,0.67]
[1757921915528,4.20999452,237.53,237.41,13.59559401]
[1757921916058,35.78495346,237.53,237.4,0.67]
[1757921916260,26.0,237.5,237.34,0.67]
[1757921917066,14.73746262,237.49,237.34,0.67]
[1757921917364,14.73746262,237.49,237.34,4.88329725]
[1757921917568,14.73746262,237.49,237.34,0.67]
[1757921917729,14.73746262,237.49,237.32,0.06]
[1757921917730,26.0,237.46,237.32,0.06]
[1757921918253,0.68,237.45,237.32,0.06]
[1757921918830,26.0,237.46,237.33,0.66]
[1757921919037,0.67,237.5,237.33,0.66]
[1757921919038,4.21141292,237.45,237.33,0.66]
[1757921919241,4.21141292,237.45,237.32,0.06]
[1757921919242,0.67,237.44,237.32,0.06]
[1757921919446,26.0,237.42,237.32,0.06]
[1757921919972,4.20999452,237.53,237.33,0.66]
[1757921920542,4.20999452,237.53,237.35,26.0]
[1757921920743,4.20999452,237.53,237.36,0.66]
[1757921921176,26.0,237.51,237.36,0.66]
[1757921921373,26.0,237.5,237.36,0.66]
[1757921921679,26.67,237.5,237.36,0.66]
[1757921921857,26.67,237.5,237.36,4.87290102]
[1757921922182,26.0,237.5,237.37,0.66]
[1757921922379,14.73498083,237.53,237.37,0.66]
[1757921922942,14.73498083,237.53,237.38,17.80824882]
[1757921923171,14.73498083,237.53,237.39,0.66]
[1757921923875,30.20999452,237.53,237.4,13.59559401]
[1757921924182,40.73498083,237.53,237.4,13.59559401]
[1757921924354,40.73498083,237.53,237.35,0.66]
[1757921924561,0.67,237.52,237.35,0.66]
[1757921925203,40.73622162,237.51,237.35,0.66]
[1757921925372,40.73622162,237.51,237.36,13.59559401]
[1757921925946,30.21034903,237.51,237.38,13.59559401]
[1757921926174,40.73622162,237.51,237.38,13.59559401]
[1757921926359,4.21023344,237.52,237.4,13.59559401]
[1757921926570,3.37997375,237.69,237.42,13.59559401]
[1757921926571,4.20970247,237.55,237.42,13.59559401]
[1757921926753,0.67,237.61,237.44,13.59559401]
[1757921926956,0.67,237.61,237.46,13.59559401]
[1757921927185,10.52266715,237.59,237.46,13.59559401]
[1757921927361,10.52266715,237.59,237.46,17.80669562]
[1757921927955,10.52266715,237.59,237.46,13.59559401]
[1757921928156,0.67,237.58,237.41,13.59559401]
[1757921928384,26.0,237.56,237.36,13.59559401]
[1757921928585,29.40084164,237.55,237.36,13.59559401]
[1757921928757,3.40084164,237.54,237.36,13.59559401]
[1757921928958,0.67,237.53,237.36,13.59559401]
[1757921929187,4.21017177,237.52,237.4,13.59559401]
[1757921929487,26.0,237.51,237.32,0.06]
[1757921929694,26.0,237.49,237.35,13.59559401]
[1757921929860,2.73084164,237.48,237.35,13.59559401]
[1757921930462,2.73084164,237.48,237.37,13.59559401]
[1757921930678,14.7356012,237.52,237.39,13.59559401]
[1757921930886,17.46644284,237.52,237.41,13.59559401]
[1757921931257,17.46644284,237.52,237.41,17.8075479]
[1757921931453,2.73084164,237.52,237.43,13.59559401]
[1757921931679,13.25500571,237.55,237.43,13.59559401]
[1757921931884,10.52416407,237.55,237.43,13.59559401]
[1757921932066,30.20976709,237.55,237.43,13.59559401]
[1757921932271,2.73084164,237.54,237.45,13.59559401]
[1757921932470,0.03,237.56,237.47,13.59559401]
[1757921932868,0.03,237.56,237.49,13.59559401]
[1757921933078,0.03,237.56,237.51,13.59559401]
[1757921933256,0.03,237.56,237.53,13.59559401]
[1757921933687,0.03,237.56,237.47,13.59559401]
[1757921934806,0.03,237.56,237.49,13.59559401]
[1757921935298,0.03,237.56,237.53,13.59559401]
[1757921935675,0.03,237.56,237.54,0.66]
[1757921935993,0.03,237.56,237.55,13.59559401]
[1757921936169,0.03,237.56,237.55,14.25559401]
[1757921937283,0.03,237.56,237.55,18.46523408]
[1757921938382,0.03,237.56,237.55,18.52523408]
[1757921939299,0.03,237.59,237.55,72.90933426]
[1757921939464,0.03,237.59,237.57,13.59559401]
[1757921939998,0.03,237.59,237.55,58.59374025]
[1757921939999,0.03,237.59,237.58,14.31559401]
[1757921940416,0.03,237.64,237.59,13.59559401]
[1757921940709,6.94741518,237.78,237.59,14.31559401]
[1757921940868,4.96525613,237.8,237.61,13.59559401]
[1757921941072,4.96525613,237.8,237.63,13.59559401]
[1757921941412,0.1,237.8,237.67,13.59559401]
[1757921941618,0.1,237.8,237.69,13.59559401]
[1757921941983,0.1,237.8,237.71,13.59559401]
[1757921942384,0.1,237.8,237.68,12.37494198]
[1757921942385,0.1,237.8,237.69,13.59559401]
[1757921942588,0.1,237.8,237.73,13.59559401]
[1757921942799,0.1,237.8,237.75,13.59559401]
[1757921943089,0.1,237.88,237.79,13.59559401]
[1757921943424,0.1,237.88,237.83,13.59559401]
[1757921943609,0.1,237.88,237.78,0.72]
[1757921943799,0.1,237.88,237.79,13.59559401]
[1757921943994,4.30385448,237.88,237.72,4.20662964]
[1757921944227,4.30385448,237.88,237.75,13.59559401]
[1757921944592,0.66,237.87,237.72,13.59559401]
[1757921944919,26.0,237.85,237.7,13.59559401]
[1757921945092,0.66,237.84,237.65,4.92773112]
[1757921945294,14.71701285,237.82,237.65,0.72]
[1757921945501,26.0,237.79,237.59,0.72]
[1757921945713,26.0,237.75,237.59,0.72]
[1757921946091,26.0,237.75,237.59,4.92877401]
[1757921946092,0.66,237.74,237.59,4.92877401]
[1757921946423,0.66,237.73,237.55,0.72]
[1757921946625,26.0,237.71,237.55,0.72]
[1757921946911,0.66,237.7,237.5,4.93052631]
[1757921947121,7.43272233,237.71,237.51,0.72]
[1757921947314,4.20662964,237.72,237.52,14.7356012]
[1757921947617,0.66,237.75,237.54,13.59559401]
[1757921947782,4.20592193,237.76,237.58,13.59559401]
[1757921947986,0.66,237.75,237.6,13.59559401]
[1757921948280,26.0,237.73,237.54,0.72]
[1757921948499,26.0,237.69,237.54,0.72]
[1757921948702,26.0,237.69,237.55,13.59559401]
[1757921949011,26.7,237.69,237.55,13.59559401]
[1757921949220,0.7,237.68,237.55,13.59559401]
[1757921949388,26.0,237.63,237.45,0.66]
[1757921949591,0.7,237.62,237.45,0.66]
[1757921949917,0.7,237.62,237.46,13.59559401]
[1757921950087,0.7,237.62,237.45,0.66]
[1757921950525,0.7,237.62,237.46,13.59559401]
[1757921950698,35.76537911,237.66,237.48,13.59559401]
[1757921950699,14.72692081,237.66,237.48,13.59559401]
[1757921950898,14.72692081,237.66,237.43,14.74118686]
[1757921950899,40.72692081,237.66,237.5,13.59559401]
[1757921951116,4.20769166,237.66,237.52,13.59559401]
[1757921951291,4.20769166,237.66,237.54,13.59559401]
[1757921951487,4.20769166,237.66,237.56,13.59559401]
[1757921951921,4.20769166,237.66,237.57,0.66]
[1757921952222,4.20769166,237.66,237.27,12.65]
[1757921952428,4.90769166,237.66,237.52,13.59559401]
[1757921952624,0.7,237.65,237.48,0.66]
[1757921952827,26.0,237.62,237.44,14.25559401]
[1757921952999,0.7,237.61,237.43,4.21176767]
[1757921953198,4.20769166,237.66,237.45,0.66]
[1757921953199,4.90769166,237.66,237.45,0.66]
[1757921953420,4.20822286,237.63,237.48,13.59559401]
[1757921953728,30.90822286,237.63,237.48,0.66]
[1757921954236,4.20822286,237.63,237.48,0.66]
[1757921954394,0.7,237.62,237.48,0.66]
[1757921955500,14.73001978,237.61,237.48,0.66]
[1757921955820,26.0,237.58,237.45,13.59559401]
[1757921955994,30.20857708,237.61,237.48,0.66]
[1757921956193,40.73001978,237.61,237.48,0.66]
[1757921957002,30.20857708,237.61,237.48,0.66]
[1757921957225,14.73001978,237.61,237.48,0.66]
[1757921957431,14.73125973,237.59,237.42,4.21183342]
[1757921957616,26.0,237.56,237.43,13.59559401]
[1757921957927,7.43272233,237.61,237.45,13.59559401]
[1757921958129,4.20698359,237.7,237.49,13.59559401]
[1757921958424,4.20698359,237.7,237.51,13.59559401]
[1757921958626,4.20698359,237.7,237.53,13.59559401]
[1757921958821,4.20698359,237.7,237.55,13.59559401]
[1757921959024,14.72609514,237.68,237.55,13.59559401]
[1757921959218,4.20722126,237.69,237.57,13.59559401]
[1757921959417,4.20722126,237.69,237.58,0.66]
[1757921959807,4.20722126,237.69,237.52,4.21017177]
[1757921959808,0.7,237.68,237.53,14.25559401]
[1757921960029,26.0,237.67,237.53,14.25559401]
[1757921960531,26.0,237.67,237.48,79.50684764]
[1757921960532,0.7,237.66,237.48,0.66]
[1757921961106,26.0,237.62,237.48,0.66]
[1757921961315,0.7,237.61,237.48,0.66]
[1757921961519,0.7,237.61,237.49,13.59559401]
[1757921961810,0.7,237.61,237.48,0.66]
[1757921962023,0.7,237.61,237.49,13.59559401]
[1757921962907,0.7,237.6,237.44,13.59559401]
[1757921963101,26.0,237.55,237.44,13.59559401]
[1757921963603,26.0,237.55,237.43,0.66]
[1757921964548,14.73187978,237.58,237.43,4.87172149]
[1757921964852,4.20910851,237.58,237.44,0.66]
[1757921965014,26.0,237.61,237.44,0.66]
[1757921965209,4.2087542,237.6,237.45,4.21141292]
[1757921965530,0.7,237.59,237.44,0.66]
[1757921965717,0.7,237.59,237.44,4.87156472]
[1757921965921,0.7,237.59,237.45,0.66]
[1757921966417,0.7,237.59,237.43,0.06]
[1757921966418,26.0,237.57,237.43,0.06]
[1757921966621,0.7,237.56,237.43,0.06]
[1757921967018,0.7,237.56,237.44,0.66]
[1757921967226,14.73312005,237.56,237.44,4.87149138]
[1757921967441,4.20946287,237.56,237.45,13.59559401]
[1757921967649,4.20946287,237.56,237.46,0.66]
[1757921967946,26.0,237.53,237.43,0.06]
[1757921968112,15.43312005,237.56,237.45,13.59559401]
[1757921969542,14.73312005,237.56,237.45,17.80697244]
[1757921969717,14.73312005,237.56,237.45,13.59559401]
[1757921970131,14.73312005,237.56,237.44,0.66]
[1757921970437,26.0,237.53,237.43,0.06]
[1757921970822,0.7,237.52,237.43,0.06]
[1757921971232,14.73622162,237.51,237.43,0.06]
[1757921971433,26.0,237.48,237.43,0.06]
[1757921972448,14.73870382,237.47,237.43,0.06]
[1757921972834,4.2107036,237.49,237.43,0.06]
[1757921973027,4.2107036,237.49,237.43,0.72]
[1757921974530,4.20999452,237.53,237.44,13.59559401]
[1757921975220,14.73498083,237.53,237.44,13.59559401]
[1757921975440,14.73498083,237.53,237.43,0.06]
[1757921975649,0.7,237.52,237.43,0.06]
[1757921976026,26.0,237.5,237.43,0.06]
[1757921976648,4.2107036,237.49,237.43,0.06]
[1757921976859,4.2107036,237.49,237.43,0.72]
[1757921977021,3.37997375,237.67,237.43,0.72]
[1757921977022,0.7,237.61,237.44,13.59559401]
[1757921977224,0.7,237.61,237.46,13.59559401]
[1757921977446,14.72939987,237.62,237.46,13.59559401]
[1757921977758,14.72939987,237.62,237.48,13.59559401]
[1757921977918,15.42939987,237.62,237.5,13.59559401]
[1757921978541,0.7,237.61,237.45,13.59559401]
[1757921978750,4.20839996,237.62,237.5,13.59559401]
[1757921978955,4.20839996,237.62,237.52,13.59559401]
[1757921979163,0.7,237.65,237.52,13.59559401]
[1757921979164,0.7,237.69,237.54,13.59559401]
[1757921979464,0.7,237.69,237.56,13.59559401]
[1757921979957,14.72444257,237.7,237.58,13.59559401]
[1757921980158,30.20698359,237.7,237.6,13.59559401]
[1757921980527,30.20698359,237.7,237.59,0.7]
[1757921980528,4.20698359,237.7,237.62,13.59559401]
[1757921981036,14.72444257,237.7,237.62,13.59559401]
[1757921981438,0.7,237.69,237.54,0.7]
[1757921981639,0.7,237.69,237.55,13.59559401]
[1757921981838,26.0,237.67,237.55,13.59559401]
[1757921982246,0.7,237.66,237.55,13.59559401]
[1757921982461,14.72754049,237.65,237.55,13.59559401]
[1757921983135,14.72754049,237.65,237.54,0.7]
[1757921983136,26.0,237.62,237.54,0.7]
[1757921983336,26.7,237.62,237.49,0.7]
[1757921983680,26.0,237.62,237.5,13.59559401]
[1757921983842,26.0,237.62,237.52,13.59559401]
[1757921984039,26.0,237.62,237.54,13.59559401]
[1757921984447,14.72754049,237.65,237.54,13.59559401]
[1757921984763,11.21967178,237.65,237.54,13.59559401]
[1757921985290,26.0,237.62,237.49,0.7]
[1757921985448,26.0,237.62,237.5,13.59559401]
[1757921985765,26.0,237.62,237.52,13.59559401]
[1757921986567,14.73001978,237.61,237.52,13.59559401]
[1757921987078,4.20857708,237.61,237.53,0.7]
[1757921987288,0.7,237.7,237.54,13.59559401]
[1757921987462,26.0,237.68,237.54,13.59559401]
[1757921987659,0.7,237.75,237.56,13.59559401]
[1757921987861,0.7,237.75,237.45,13.59559401]
[1757921987862,0.7,237.75,237.58,13.59559401]
[1757921988084,0.7,237.75,237.6,13.59559401]
[1757921988249,14.72196516,237.74,237.6,13.59559401]
[1757921988445,14.72196516,237.74,237.62,13.59559401]
[1757921988985,14.72196516,237.74,237.62,17.80387904]
[1757921989156,14.72196516,237.74,237.63,0.7]
[1757921989353,14.72196516,237.74,237.64,13.59559401]
[1757921990049,4.2060736,237.76,237.64,13.59559401]
[1757921990322,4.2060736,237.76,237.65,0.7]
[1757921990488,14.72087844,237.76,237.65,0.7]
[1757921990792,15.42087844,237.76,237.62,0.7]
[1757921991083,4.2060736,237.76,237.62,0.7]
[1757921991285,4.20576128,237.77,237.63,13.59559401]
[1757921991593,4.20576128,237.77,237.64,0.7]
[1757921992079,4.90576128,237.77,237.64,0.7]
[1757921992378,15.42012389,237.77,237.65,13.59559401]
[1757921992593,15.42012389,237.77,237.61,4.20855572]
[1757921992594,0.7,237.76,237.61,13.59559401]
[1757921992892,0.7,237.75,237.61,13.59559401]
[1757921993062,0.7,237.75,237.63,13.59559401]
[1757921993258,14.72012389,237.77,237.63,13.59559401]
[1757921993449,26.0,237.74,237.63,13.59559401]
[1757921994503,4.20645269,237.73,237.64,0.7]
[1757921994806,4.20645269,237.73,237.65,13.59559401]
[1757921995381,4.20645269,237.73,237.66,0.7]
[1757921995703,4.20621711,237.75,237.67,13.59559401]
[1757921995908,2.75080151,237.78,237.67,13.59559401]
[1757921996086,0.73,237.8,237.69,13.59559401]
[1757921996087,10.54311291,237.8,237.69,13.59559401]
[1757921996403,10.54311291,237.8,237.69,17.80262609]
[1757921996809,10.54311291,237.8,237.7,0.7]
[1757921997381,0.03,237.8,237.71,13.59559401]
[1757921997842,0.74,237.8,237.67,13.59559401]
[1757921998114,0.74,237.8,237.69,0.71]
[1757921998578,14.71886958,237.79,237.69,0.71]
[1757921999009,14.71886958,237.79,237.69,4.91711401]
[1757921999584,14.71886958,237.79,237.7,13.59559401]
[1757921999903,14.71886958,237.79,237.64,13.59559401]
[1757921999904,14.71886958,237.79,237.67,13.59559401]
[1757922000278,4.20539131,237.79,237.69,13.59559401]
[1757922000581,0.71,237.78,237.66,13.59559401]
[1757922000777,0.03,237.8,237.67,0.71]
[1757922001714,0.03,237.8,237.7,13.59559401]
[1757922001910,0.03,237.8,237.72,13.59559401]
[1757922002302,0.03,237.8,237.74,13.59559401]
[1757922002523,0.03,237.8,237.74,17.80170719]
[1757922002701,0.03,237.8,237.76,13.59559401]
[1757922003225,0.03,237.8,237.78,13.59559401]
[1757922003634,0.03,237.8,237.79,14.30559401]
[1757922003926,0.03,237.86,237.8,13.59559401]
[1757922004105,0.03,237.86,237.8,55.08559401]
[1757922004317,0.03,237.86,237.82,13.59559401]
[1757922004827,0.03,237.86,237.84,13.59559401]
[1757922005029,0.1,237.88,237.84,13.59559401]
[1757922005242,0.1,237.88,237.86,13.59559401]
[1757922005404,4.30397069,237.88,237.83,13.59559401]
[1757922005920,0.1,237.88,237.84,0.71]
[1757922006094,0.1,237.88,237.85,0.71]
[1757922006721,0.1,237.88,237.8,10.51303616]
[1757922007024,0.1,237.88,237.86,0.71]
[1757922007615,0.1,237.88,237.82,0.71]
[1757922007910,0.1,237.88,237.75,25.67177031]
[1757922007911,4.20397696,237.87,237.75,25.67177031]
[1757922008219,0.1,237.88,237.79,13.59559401]
[1757922008621,0.1,237.88,237.81,13.59559401]
[1757922009008,4.30382261,237.88,237.81,13.59559401]
[1757922009204,4.30382261,237.88,237.8,0.71]
[1757922009520,14.81332319,237.88,237.8,0.71]
[1757922009725,0.1,237.88,237.8,0.71]
[1757922009909,0.1,237.88,237.81,13.59559401]
[1757922010110,0.1,237.88,237.82,0.67]
[1757922010333,4.30391583,237.88,237.82,0.67]
[1757922010636,0.1,237.88,237.82,4.87484306]
[1757922010836,0.1,237.88,237.83,13.59559401]
[1757922011146,0.1,237.88,237.83,14.26559401]
[1757922011308,0.1,237.88,237.83,13.59559401]
[1757922011502,0.1,237.88,237.84,0.67]
[1757922011937,0.1,237.88,237.83,13.59559401]
[1757922012242,0.1,237.88,237.84,0.67]
[1757922012418,0.1,237.88,237.85,0.67]
[1757922012606,0.1,237.88,237.87,4.20397696]
[1757922012813,0.1,237.88,237.87,4.87397696]
[1757922013012,0.1,237.88,237.87,18.46957097]
[1757922014428,4.86134711,238.02,237.88,13.59559401]
[1757922014747,4.86134711,238.02,237.91,13.59559401]
[1757922015117,0.1,238.04,237.93,13.59559401]
[1757922015841,4.30102927,238.04,237.93,13.59559401]
[1757922016039,4.96102927,238.04,237.93,13.59559401]
[1757922016244,15.46346583,238.04,237.93,13.59559401]
[1757922017046,0.66,238.03,237.86,0.67]
[1757922017247,0.66,238.03,237.87,13.59559401]
[1757922017413,0.66,238.02,237.89,13.59559401]
[1757922018739,0.66,238.01,237.86,13.59559401]
[1757922018950,4.20168067,238.0,237.89,4.20362352]
[1757922019248,0.66,238.01,237.9,0.67]
[1757922019411,4.86152852,238.01,237.9,0.67]
[1757922020116,4.20124604,238.03,237.91,13.59559401]
[1757922020418,30.30108271,238.04,237.93,13.59559401]
[1757922020630,0.1,238.04,237.94,0.67]
[1757922021142,4.30098702,238.04,237.95,4.20256356]
[1757922021511,0.1,238.04,237.96,0.67]
[1757922022644,0.1,238.04,237.97,13.59559401]
[1757922022944,0.1,238.04,237.96,0.67]
[1757922023116,0.1,238.04,237.97,14.70773626]
[1757922023315,0.1,238.04,237.98,0.67]
[1757922024146,0.1,238.04,237.99,13.59559401]
[1757922024345,0.1,238.04,238.01,13.59559401]
[1757922024533,0.1,238.04,238.03,13.59559401]
[1757922024721,0.1,238.04,238.03,0.67]
[1757922025138,0.1,238.04,238.03,4.87115111]
[1757922025335,0.1,238.04,238.03,0.67]
[1757922026923,0.76,238.04,237.93,0.67]
[1757922027117,4.96098316,238.04,237.94,4.20274018]
[1757922027321,0.1,238.04,237.95,0.67]
[1757922027522,0.1,238.04,237.96,13.59559401]
[1757922027726,0.1,238.04,237.95,0.67]
[1757922028264,0.1,238.04,237.96,13.59559401]
[1757922028438,0.1,238.04,237.98,13.59559401]
[1757922029248,0.1,238.04,238.02,13.59559401]
[1757922029624,0.1,238.04,238.03,0.67]